lending/lending_fUSD_20250303
["ID","MTS","AMOUNT","RATE_DAILY","PERIOD"]
[355222009,1741024251729,-500.0,0.00014773,2]
[355222011,1741024251739,-500.0,0.00014773,2]
[355222013,1741024251749,-500.0,0.00014773,2]
[355222015,1741024251759,-500.0,0.00014773,2]
[355222017,1741024251768,-500.0,0.00014773,2]
[355222019,1741024251778,-1005.34,0.00014773,2]
[355222021,1741024251788,-500.0,0.00014773,2]
[355222023,1741024251798,-500.0,0.00014773,2]
[355222025,1741024251807,-516.21586713,0.00014773,2]
[355222027,1741024251817,-500.0,0.00014773,2]
[355222028,1741024251826,-500.0,0.00014773,2]
[355222030,1741024251836,-518.6192022,0.00014773,2]
[355222032,1741024251846,-1990.68,0.00014773,2]
[355222034,1741024251856,-500.0,0.00014773,2]
[355222037,1741024251866,-500.0,0.00014773,2]
[355222038,1741024251880,-1815.41,0.00014773,2]
[355222040,1741024251890,-500.0,0.00014773,2]
[355222042,1741024251899,-500.0,0.00014773,2]
[355222044,1741024251909,-2065.03,0.00014773,2]
[355222047,1741024251919,-500.0,0.00014773,2]
[355222048,1741024251929,-500.0,0.00014773,2]
[355222051,1741024251938,-1629.39,0.00014773,2]
[355222052,1741024251948,-500.0,0.00014773,2]
[355222054,1741024251959,-500.0,0.00014773,2]
[355222056,1741024251969,-638.73,0.00014773,2]
[355222058,1741024251979,-1613.67545647,0.00014773,2]
[355222064,1741024252023,-1240.96454353,0.00014773,2]
[355222066,1741024252033,-539.71,0.00014773,2]
[355222068,1741024252042,-18331.21961166,0.00014773,2]
[355222070,1741024252054,-273.321,0.00014773,2]
[355222073,1741024252070,-4307.56043718,0.00014773,2]
[355222075,1741024252081,-3107.85901998,0.00014773,2]
[355222158,1741024253158,-4609.97993118,0.00014773,2]
[355222160,1741024253168,-500.0,0.00014773,2]
[355222162,1741024253178,-1334.89,0.00014773,2]
[355222164,1741024253188,-918.33,0.00014773,2]
[355222166,1741024253198,-500.0,0.00014773,2]
[355222168,1741024253208,-2178.0,0.00014773,2]
[355222170,1741024253218,-500.0,0.00014773,2]
[355222173,1741024253229,-495.19438091,0.00014773,2]
[355222174,1741024253239,-3717.78,0.00014773,2]
[355222176,1741024253248,-66.18465697,0.00014773,2]
[355222247,1741024253942,-392.29490377,0.00014773,2]
[355222249,1741024253954,-293.86565485,0.00014773,2]
[355222495,1741024256671,1342.45,0.0001381,2]
[355222503,1741024256743,-500.0,0.00014771,2]
[355222505,1741024256754,-500.0,0.00014771,2]
[355222507,1741024256763,-500.0,0.00014771,2]
[355222509,1741024256772,-500.0,0.00014771,2]
[355222511,1741024256781,-276.57487077,0.00014771,2]
[355222528,1741024256928,-223.42512923,0.00014771,2]
[355222530,1741024256938,-883.60103077,0.00014773,2]
[355222586,1741024257762,-8462.3,0.00014773,2]
[355222588,1741024257871,-500.0,0.00014771,2]
[355222589,1741024257883,-1448.81894192,0.00014773,2]
[355222590,1741024257900,-1821.22355358,0.00014773,2]
[355223791,1741024312810,777.52,0.00014041,2]
[355223797,1741024506574,151.0,0.00014511,2]
[355223798,1741024526528,159.62,0.00013795,2]
[355223799,1741024526752,159.62,0.00014099,2]
[355223800,1741024526972,159.62,0.00014402,2]
[355223801,1741024600684,250.0,0.00013795,2]
[355223802,1741024650014,187.14,0.00014113,2]
[355223803,1741024703786,150.0,0.00014078,2]
[355223804,1741024714199,300.0,0.000139,5]
[355223805,1741024716310,600.0,0.00014,5]
[355223806,1741024718428,900.0,0.000141,5]
[355223807,1741024720551,1200.0,0.000142,5]
[355223808,1741024722526,2000.0,0.00013789,2]
[355223809,1741024722657,1500.0,0.000143,5]
[355223810,1741024724776,300.0,0.000144,5]
[355223811,1741024726667,433.30636765,0.00014347,2]
[355223812,1741024726893,300.0,0.000145,5]
[355223813,1741024811639,151.0,0.00014511,2]
[355223814,1741024842321,8079.63747933,0.000145,2]
[355223815,1741024846718,747.0,0.00011833,2]
[355223816,1741024846891,747.0,0.00014097,2]
[355223841,1741024966577,250.0,0.00013,2]
[355223846,1741025008359,1000.0,0.0001373,2]
[355223856,1741025107724,151.0,0.00014511,2]
[355223862,1741025208133,2000.0,0.00013709,2]
[355223863,1741025227195,433.30636765,0.00014278,2]
[355223864,1741025282897,159.25,0.00013729,2]
[355223865,1741025294586,150.0,0.00013729,7]
[355223866,1741025412740,151.0,0.00014511,2]
[355223872,1741025431772,-150.0,0.00014593,2]
[355223873,1741025431783,-572.23935065,0.00014593,2]
[355223874,1741025431795,-8813.39358556,0.00014593,2]
[355223875,1741025431827,-1525.73095997,0.00014593,2]
[355223876,1741025431882,-876.27229636,0.00014593,2]
[355223877,1741025436161,-921.07076502,0.00014593,2]
[355223878,1741025436171,-1650.0,0.000146,2]
[355223879,1741025436180,-689.77952,0.0001463,2]
[355223880,1741025436192,-199.75568966,0.0001467,2]
[355223881,1741025436202,-195.16959421,0.0001467,2]
[355223882,1741025436211,-2921.19389919,0.0001467,2]
[355223883,1741025436222,-2078.80610081,0.0001467,2]
[355223885,1741025436232,-199.75568963,0.00014673,2]
[355223887,1741025436242,-195.16959418,0.00014673,2]
[355223889,1741025436251,-199.75568963,0.00014675,2]
[355223890,1741025436260,-195.16959418,0.00014675,2]
[355223892,1741025436270,-199.75568963,0.00014678,2]
[355223893,1741025436279,-195.16959418,0.00014678,2]
[355223894,1741025436288,-199.75568963,0.0001468,2]
[355223895,1741025436297,-195.16959418,0.0001468,2]
[355223896,1741025436306,-199.75568963,0.00014683,2]
[355223897,1741025436315,-195.16959418,0.00014683,2]
[355223898,1741025436325,-199.75568963,0.00014685,2]
[355223899,1741025436334,-195.16959418,0.00014685,2]
[355223900,1741025436343,-1000.0,0.00014686,2]
[355223901,1741025436352,-199.75568963,0.00014688,2]
[355223902,1741025436361,-195.16959418,0.00014688,2]
[355223903,1741025436370,-1000.0,0.0001469,2]
[355223904,1741025436379,-199.75568963,0.0001469,2]
[355223905,1741025436388,-195.16959418,0.0001469,2]
[355223906,1741025436397,-565.64646664,0.00014693,2]
[355223907,1741025436406,-284.2260689,0.00014693,2]
[355223908,1741025436415,-196.62990367,0.00014693,2]
[355223910,1741025436444,-3.12578596,0.00014693,2]
[355223912,1741025436454,-195.16959418,0.00014693,2]
[355223914,1741025436464,-200.0,0.00014704,2]
[355223916,1741025436474,-159.62,0.00014706,2]
[355223918,1741025436483,-200.0,0.00014724,2]
[355223920,1741025436493,-408.2506925,0.00014726,2]
[355223922,1741025436504,-946.24,0.00014726,2]
[355224021,1741025437489,-5857.67980227,0.00014726,2]
[355224023,1741025437500,-1000.0,0.00014727,2]
[355224025,1741025437510,-150.0,0.00014729,2]
[355224027,1741025437520,-200.0,0.00014734,2]
[355224029,1741025437531,-500.0,0.0001474,2]
[355224031,1741025437542,-421.0,0.0001474,2]
[355224033,1741025437553,-200.0,0.00014741,2]
[355224035,1741025437563,-150.0,0.00014742,2]
[355224037,1741025437573,-150.0,0.00014743,2]
[355224039,1741025437583,-150.0,0.00014743,2]
[355224041,1741025437593,-4746.31401016,0.00014755,2]
[355224043,1741025437603,-150.0,0.00014756,2]
[355224044,1741025437612,-612.04,0.0001476,2]
[355224046,1741025437623,-200.0,0.0001476,2]
[355224048,1741025437632,-150.0,0.00014761,2]
[355224050,1741025437642,-7212.17049477,0.00014766,2]
[355224052,1741025437653,-187.157,0.00014769,2]
[355224054,1741025437662,-3246.486,0.00014769,2]
[355224056,1741025437672,-150.0,0.00014769,2]
[355224058,1741025437682,-885.89,0.00014769,2]
[355224061,1741025437700,-1350.73,0.00014769,2]
[355224063,1741025437710,-1176.405214,0.00014769,2]
[355224064,1741025437720,-738.08,0.00014769,2]
[355224067,1741025437731,-202.855083,0.00014769,2]
[355224069,1741025437740,-2058.36,0.00014769,2]
[355224071,1741025437750,-4146.5,0.00014769,2]
[355224073,1741025437759,-1483.360683,0.00014769,2]
[355224075,1741025437771,-2708.23,0.00014769,2]
[355224076,1741025437781,-3503.34,0.00014769,2]
[355224078,1741025437791,-166.172753,0.00014769,2]
[355224080,1741025437800,-3182.08,0.00014769,2]
[355224082,1741025437809,-153.731832,0.00014769,2]
[355224084,1741025437819,-500.0,0.00014769,2]
[355224086,1741025437829,-4246.17,0.00014769,2]
[355224088,1741025437839,-2026.75,0.00014769,2]
[355224090,1741025437848,-2427.63,0.00014769,2]
[355224092,1741025437858,-7844.24,0.00014769,2]
[355224094,1741025437868,-2787.54,0.00014769,2]
[355224097,1741025437879,-2018.31,0.00014769,2]
[355224099,1741025437889,-1892.93,0.00014769,2]
[355224101,1741025437899,-2256.08,0.00014769,2]
[355224103,1741025437908,-500.0,0.00014769,2]
[355224105,1741025437917,-2727.17,0.00014769,2]
[355224107,1741025437927,-1495.35,0.00014769,2]
[355224109,1741025437939,-2079.42,0.00014769,2]
[355224111,1741025437949,-2843.59,0.00014769,2]
[355224113,1741025437959,-3202.7,0.00014769,2]
[355224115,1741025437969,-1533.26,0.00014769,2]
[355224117,1741025437978,-500.0,0.00014769,2]
[355224119,1741025437987,-2224.94,0.00014769,2]
[355224121,1741025437996,-3965.17,0.00014769,2]
[355224122,1741025438006,-2690.0,0.00014769,2]
[355224125,1741025438016,-2185.64,0.00014769,2]
[355224127,1741025438026,-2713.94,0.00014769,2]
[355224129,1741025438035,-1099.46,0.00014769,2]
[355224131,1741025438045,-500.0,0.00014769,2]
[355224133,1741025438054,-4116.54,0.00014769,2]
[355224134,1741025438064,-1103.37,0.00014769,2]
[355224136,1741025438074,-500.0,0.00014769,2]
[355224138,1741025438083,-1559.1,0.00014769,2]
[355224140,1741025438093,-1351.72,0.00014769,2]
[355224142,1741025438103,-14337.51,0.00014769,2]
[355224144,1741025438112,-1826.5,0.00014769,2]
[355224146,1741025438121,-500.0,0.00014769,2]
[355224148,1741025438131,-500.0,0.00014769,2]
[355224151,1741025438141,-2243.65,0.00014769,2]
[355224153,1741025438151,-1852.59,0.00014769,2]
[355224155,1741025438160,-3586.84,0.00014769,2]
[355224157,1741025438170,-1214.63,0.00014769,2]
[355224159,1741025438179,-1697.5,0.00014769,2]
[355224161,1741025438191,-701.51,0.00014769,2]
[355224163,1741025438200,-2263.99,0.00014769,2]
[355224164,1741025438210,-624.26,0.00014769,2]
[355224166,1741025438219,-1337.8,0.00014769,2]
[355224169,1741025438230,-500.0,0.00014769,2]
[355224171,1741025438239,-1844.05,0.00014769,2]
[355224173,1741025438248,-1669.38,0.00014769,2]
[355224174,1741025438257,-11628.44,0.00014769,2]
[355224176,1741025438267,-698.8,0.00014769,2]
[355224178,1741025438276,-1700.05,0.00014769,2]
[355224181,1741025438286,-500.0,0.00014769,2]
[355224182,1741025438295,-501.25257774,0.00014769,2]
[355224184,1741025438304,-1628.17,0.00014769,2]
[355224186,1741025438313,-753.34,0.00014769,2]
[355224188,1741025438323,-1482.03,0.00014769,2]
[355224190,1741025438332,-514.39472823,0.00014769,2]
[355224192,1741025438341,-1112.98,0.00014769,2]
[355224194,1741025438351,-500.0,0.00014769,2]
[355224196,1741025438360,-500.0,0.00014769,2]
[355224199,1741025438373,-190.95566949,0.00014769,2]
[355224201,1741025438383,-186.2140565,0.00014769,2]
[355224203,1741025438393,-500.0,0.00014769,2]
[355224205,1741025438402,-500.0,0.00014769,2]
[355224207,1741025438411,-500.0,0.00014769,2]
[355224209,1741025438420,-500.0,0.00014769,2]
[355224211,1741025438429,-500.0,0.00014769,2]
[355224213,1741025438440,-475.87339575,0.00014769,2]
[355224215,1741025438450,-1251.67,0.0001477,2]
[355224217,1741025438459,-500.0,0.0001477,2]
[355224219,1741025438468,-500.0,0.0001477,2]
[355224221,1741025438478,-500.0,0.0001477,2]
[355224223,1741025438488,-502.07789325,0.0001477,2]
[355224225,1741025438499,-502.92614776,0.0001477,2]
[355224227,1741025438518,-500.0,0.0001477,2]
[355224229,1741025438529,-502.72670866,0.0001477,2]
[355224231,1741025438539,-500.0,0.0001477,2]
[355224233,1741025438548,-1281.24,0.0001477,2]
[355224235,1741025438558,-500.0,0.0001477,2]
[355224237,1741025438567,-500.0,0.0001477,2]
[355224239,1741025438576,-500.0,0.0001477,2]
[355224241,1741025438586,-500.0,0.0001477,2]
[355224243,1741025438595,-501.4767912,0.0001477,2]
[355224245,1741025438605,-683.67,0.0001477,2]
[355224247,1741025438614,-500.0,0.0001477,2]
[355224249,1741025438623,-500.0,0.0001477,2]
[355224251,1741025438633,-500.0,0.0001477,2]
[355224253,1741025438643,-500.0,0.0001477,2]
[355224255,1741025438652,-500.0,0.0001477,2]
[355224257,1741025438662,-500.0,0.0001477,2]
[355224259,1741025438673,-610.3998361,0.0001477,2]
[355224261,1741025438683,-500.0,0.0001477,2]
[355224263,1741025438698,-500.0,0.0001477,2]
[355224265,1741025438707,-520.36416667,0.0001477,2]
[355224267,1741025438717,-500.0,0.0001477,2]
[355224270,1741025438728,-1259.41,0.0001477,2]
[355224271,1741025438738,-502.82462378,0.0001477,2]
[355224273,1741025438747,-500.0,0.0001477,2]
[355224275,1741025438756,-500.0,0.0001477,2]
[355224278,1741025438767,-500.0,0.0001477,2]
[355224279,1741025438776,-500.0,0.0001477,2]
[355224281,1741025438786,-500.0,0.0001477,2]
[355224284,1741025438796,-1626.14,0.0001477,2]
[355224286,1741025438806,-644.09,0.0001477,2]
[355224288,1741025438815,-500.0,0.0001477,2]
[355224290,1741025438824,-703.87,0.0001477,2]
[355224292,1741025438834,-515.58438637,0.0001477,2]
[355224294,1741025438843,-371.97798323,0.0001477,2]
[355224296,1741025438852,-972.83,0.0001477,2]
[355224298,1741025438862,-500.0,0.0001477,2]
[355224300,1741025438872,-500.0,0.0001477,2]
[355224302,1741025438881,-500.0,0.0001477,2]
[355224304,1741025438890,-1120.87,0.0001477,2]
[355224306,1741025438900,-1330.42,0.0001477,2]
[355224308,1741025438909,-500.0,0.0001477,2]
[355224310,1741025438919,-500.0,0.0001477,2]
[355224312,1741025438928,-500.0,0.0001477,2]
[355224314,1741025438938,-500.0,0.0001477,2]
[355224316,1741025438947,-500.0,0.0001477,2]
[355224318,1741025438957,-500.0,0.0001477,2]
[355224320,1741025438967,-500.0,0.0001477,2]
[355224322,1741025438977,-720.26,0.0001477,2]
[355224324,1741025438986,-500.0,0.0001477,2]
[355224326,1741025438995,-500.0,0.0001477,2]
[355224328,1741025439005,-500.0,0.0001477,2]
[355224330,1741025439014,-500.0,0.0001477,2]
[355224332,1741025439025,-500.0,0.0001477,2]
[355224334,1741025439034,-775.43,0.0001477,2]
[355224336,1741025439043,-500.0,0.0001477,2]
[355224338,1741025439053,-1691.49,0.0001477,2]
[355224340,1741025439062,-500.0,0.0001477,2]
[355224342,1741025439072,-537.06924038,0.0001477,2]
[355224344,1741025439081,-500.0,0.0001477,2]
[355224346,1741025439091,-655.31,0.0001477,2]
[355224348,1741025439100,-697.36,0.0001477,2]
[355224350,1741025439110,-955.5,0.0001477,2]
[355224352,1741025439119,-500.0,0.0001477,2]
[355224354,1741025439130,-500.0,0.0001477,2]
[355224356,1741025439139,-1443.2,0.0001477,2]
[355224358,1741025439150,-1351.31,0.0001477,2]
[355224360,1741025439160,-500.0,0.0001477,2]
[355224362,1741025439170,-1140.01,0.0001477,2]
[355224364,1741025439180,-697.91,0.0001477,2]
[355224366,1741025439193,-500.0,0.0001477,2]
[355224368,1741025439204,-500.0,0.0001477,2]
[355224370,1741025439213,-795.03,0.0001477,2]
[355224372,1741025439224,-500.0,0.0001477,2]
[355224375,1741025439233,-500.0,0.0001477,2]
[355224377,1741025439243,-500.0,0.0001477,2]
[355224379,1741025439252,-500.0,0.0001477,2]
[355224380,1741025439262,-500.0,0.0001477,2]
[355224381,1741025439271,-500.0,0.0001477,2]
[355224382,1741025439280,-500.0,0.0001477,2]
[355224383,1741025439290,-1265.33,0.0001477,2]
[355224384,1741025439299,-547.35,0.0001477,2]
[355224385,1741025439308,-500.0,0.0001477,2]
[355224386,1741025439317,-500.0,0.0001477,2]
[355224387,1741025439327,-500.36825461,0.0001477,2]
[355224388,1741025439337,-730.58,0.0001477,2]
[355224389,1741025439346,-500.0,0.0001477,2]
[355224390,1741025439355,-1515.09,0.0001477,2]
[355224391,1741025439365,-500.0,0.0001477,2]
[355224392,1741025439374,-1388.91,0.0001477,2]
[355224394,1741025439384,-500.0,0.0001477,2]
[355224395,1741025439393,-500.0,0.0001477,2]
[355224397,1741025439403,-500.0,0.0001477,2]
[355224399,1741025439412,-500.0,0.0001477,2]
[355224402,1741025439422,-529.53,0.0001477,2]
[355224403,1741025439432,-159.92302005,0.0001477,2]
[355224405,1741025439444,-931.64,0.0001477,2]
[355224407,1741025439453,-500.0,0.0001477,2]
[355224409,1741025439463,-500.0,0.0001477,2]
[355224411,1741025439473,-686.7,0.0001477,2]
[355224414,1741025439483,-500.0,0.0001477,2]
[355224416,1741025439493,-500.0,0.0001477,2]
[355224419,1741025439503,-820.82,0.0001477,2]
[355224421,1741025439512,-500.0,0.0001477,2]
[355224423,1741025439521,-500.0,0.0001477,2]
[355224425,1741025439531,-772.43,0.0001477,2]
[355224427,1741025439541,-500.0,0.0001477,2]
[355224448,1741025439745,-860.17,0.0001477,2]
[355224450,1741025439755,-500.0,0.0001477,2]
[355224452,1741025439765,-809.17,0.0001477,2]
[355224454,1741025439775,-500.0,0.0001477,2]
[355224456,1741025439784,-500.0,0.0001477,2]
[355224458,1741025439794,-501.4285939,0.0001477,2]
[355224460,1741025439803,-500.0,0.0001477,2]
[355224462,1741025439813,-500.0,0.0001477,2]
[355224464,1741025439822,-500.0,0.0001477,2]
[355224466,1741025439832,-1285.12,0.0001477,2]
[355224468,1741025439841,-500.0,0.0001477,2]
[355224470,1741025439851,-500.0,0.0001477,2]
[355224472,1741025439860,-500.0,0.0001477,2]
[355224474,1741025439869,-761.42,0.0001477,2]
[355224476,1741025439879,-500.0,0.0001477,2]
[355224478,1741025439888,-1497.85,0.0001477,2]
[355224480,1741025439897,-500.49244536,0.0001477,2]
[355224482,1741025439906,-500.0,0.0001477,2]
[355224484,1741025439916,-500.0,0.0001477,2]
[355224486,1741025439925,-500.0,0.0001477,2]
[355224488,1741025439935,-500.0,0.0001477,2]
[355224490,1741025439946,-500.0,0.0001477,2]
[355224492,1741025439956,-500.0,0.0001477,2]
[355224494,1741025439965,-500.0,0.0001477,2]
[355224496,1741025439974,-753.33,0.0001477,2]
[355224498,1741025439984,-1152.91,0.0001477,2]
[355224500,1741025439993,-833.33,0.0001477,2]
[355224502,1741025440002,-500.0,0.0001477,2]
[355224504,1741025440011,-1012.48,0.0001477,2]
[355224506,1741025440021,-1369.83,0.0001477,2]
[355224508,1741025440031,-500.0,0.0001477,2]
[355224510,1741025440041,-645.36,0.0001477,2]
[355224512,1741025440050,-501.44516207,0.0001477,2]
[355224514,1741025440060,-500.0,0.0001477,2]
[355224516,1741025440069,-500.0,0.0001477,2]
[355224518,1741025440078,-500.0,0.0001477,2]
[355224520,1741025440088,-500.0,0.0001477,2]
[355224522,1741025440098,-584.78,0.0001477,2]
[355224524,1741025440107,-500.0,0.0001477,2]
[355224526,1741025440118,-500.0,0.0001477,2]
[355224529,1741025440127,-697.25,0.0001477,2]
[355224530,1741025440137,-500.0,0.0001477,2]
[355224532,1741025440147,-1854.99,0.0001477,2]
[355224534,1741025440156,-532.57,0.0001477,2]
[355224536,1741025440165,-500.0,0.0001477,2]
[355224538,1741025440175,-505.39623642,0.0001477,2]
[355224540,1741025440184,-500.0,0.0001477,2]
[355224542,1741025440195,-500.0,0.0001477,2]
[355224544,1741025440205,-500.0,0.0001477,2]
[355224546,1741025440214,-1306.16,0.0001477,2]
[355224548,1741025440224,-514.42880303,0.0001477,2]
[355224550,1741025440234,-500.0,0.0001477,2]
[355224552,1741025440244,-500.0,0.0001477,2]
[355224554,1741025440253,-1356.09,0.0001477,2]
[355224556,1741025440262,-500.0,0.0001477,2]
[355224558,1741025440272,-711.63,0.0001477,2]
[355224560,1741025440282,-500.0,0.0001477,2]
[355224562,1741025440291,-507.97,0.0001477,2]
[355224564,1741025440301,-500.0,0.0001477,2]
[355224566,1741025440311,-500.0,0.0001477,2]
[355224568,1741025440320,-500.0,0.0001477,2]
[355224571,1741025440331,-500.0,0.0001477,2]
[355224573,1741025440341,-500.0,0.0001477,2]
[355224574,1741025440350,-1191.85,0.0001477,2]
[355224576,1741025440359,-500.0,0.0001477,2]
[355224578,1741025440369,-500.0,0.0001477,2]
[355224581,1741025440379,-465.03725061,0.0001477,2]
[355224583,1741025440388,-500.0,0.0001477,2]
[355224585,1741025440398,-975.99,0.0001477,2]
[355224587,1741025440407,-1175.39,0.0001477,2]
[355224588,1741025440416,-500.0,0.0001477,2]
[355224590,1741025440425,-500.0,0.0001477,2]
[355224591,1741025440435,-500.0,0.0001477,2]
[355224592,1741025440447,-500.0,0.0001477,2]
[355224593,1741025440456,-500.0,0.0001477,2]
[355224594,1741025440466,-500.0,0.0001477,2]
[355224595,1741025440476,-500.0,0.0001477,2]
[355224596,1741025440485,-500.0,0.0001477,2]
[355224597,1741025440495,-500.0,0.0001477,2]
[355224598,1741025440505,-500.0,0.0001477,2]
[355224599,1741025440514,-500.0,0.0001477,2]
[355224600,1741025440524,-500.0,0.0001477,2]
[355224601,1741025440534,-500.0,0.0001477,2]
[355224602,1741025440544,-778.05,0.0001477,2]
[355224603,1741025440553,-500.0,0.0001477,2]
[355224605,1741025440563,-500.0,0.0001477,2]
[355224607,1741025440572,-616.53,0.0001477,2]
[355224609,1741025440582,-1085.16,0.0001477,2]
[355224610,1741025440592,-500.0,0.0001477,2]
[355224613,1741025440603,-500.0,0.0001477,2]
[355224614,1741025440613,-500.0,0.0001477,2]
[355224615,1741025440622,-500.0,0.0001477,2]
[355224616,1741025440633,-500.0,0.0001477,2]
[355224617,1741025440642,-500.0,0.0001477,2]
[355224618,1741025440652,-500.0,0.0001477,2]
[355224619,1741025440661,-500.0,0.0001477,2]
[355224620,1741025440671,-500.0,0.0001477,2]
[355224621,1741025440682,-1783.34,0.0001477,2]
[355224622,1741025440695,-961.57,0.0001477,2]
[355224623,1741025440704,-500.0,0.0001477,2]
[355224624,1741025440713,-632.81,0.0001477,2]
[355224625,1741025440723,-500.0,0.0001477,2]
[355224626,1741025440732,-555.32,0.0001477,2]
[355224627,1741025440742,-696.12,0.0001477,2]
[355224628,1741025440752,-500.0,0.0001477,2]
[355224629,1741025440762,-1170.31,0.0001477,2]
[355224630,1741025440772,-521.3396013,0.0001477,2]
[355224631,1741025440781,-500.0,0.0001477,2]
[355224632,1741025440790,-500.0,0.0001477,2]
[355224633,1741025440800,-500.0,0.0001477,2]
[355224634,1741025440809,-500.0,0.0001477,2]
[355224635,1741025440819,-500.0,0.0001477,2]
[355224636,1741025440828,-500.0,0.0001477,2]
[355224637,1741025440838,-721.05,0.0001477,2]
[355224638,1741025440851,-500.0,0.0001477,2]
[355224639,1741025440861,-500.0,0.0001477,2]
[355224640,1741025440871,-508.23334379,0.0001477,2]
[355224641,1741025440880,-548.13,0.0001477,2]
[355224642,1741025440889,-501.01815665,0.0001477,2]
[355224643,1741025440900,-500.0,0.0001477,2]
[355224644,1741025440910,-500.0,0.0001477,2]
[355224645,1741025440919,-500.0,0.0001477,2]
[355224646,1741025440929,-500.0,0.0001477,2]
[355224647,1741025440938,-719.04,0.0001477,2]
[355224648,1741025440954,-500.0,0.0001477,2]
[355224649,1741025440963,-500.69656846,0.0001477,2]
[355224650,1741025440973,-500.0,0.0001477,2]
[355224651,1741025440982,-500.0,0.0001477,2]
[355224652,1741025440992,-500.0,0.0001477,2]
[355224653,1741025441002,-500.0,0.0001477,2]
[355224654,1741025441012,-500.0,0.0001477,2]
[355224655,1741025441021,-500.0,0.0001477,2]
[355224656,1741025441030,-500.0,0.0001477,2]
[355224657,1741025441039,-581.77369159,0.0001477,2]
[355224658,1741025441049,-311.98092046,0.0001477,2]
[355224659,1741025441057,-1306.6,0.0001477,2]
[355224660,1741025441067,-2303.51,0.0001477,2]
[355224661,1741025441076,-1438.62,0.0001477,2]
[355224662,1741025441086,-1212.53,0.0001477,2]
[355224663,1741025441095,-506.46482336,0.0001477,2]
[355224664,1741025441104,-500.0,0.0001477,2]
[355224665,1741025441114,-500.0,0.0001477,2]
[355224666,1741025441124,-500.0,0.0001477,2]
[355224667,1741025441133,-500.0,0.0001477,2]
[355224668,1741025441142,-590.24,0.0001477,2]
[355224669,1741025441152,-1098.1,0.0001477,2]
[355224670,1741025441162,-500.0,0.0001477,2]
[355224671,1741025441171,-500.0,0.0001477,2]
[355224672,1741025441180,-586.2,0.0001477,2]
[355224673,1741025441193,-502.41839032,0.0001477,2]
[355224674,1741025441202,-529.84,0.0001477,2]
[355224675,1741025441212,-500.0,0.0001477,2]
[355224676,1741025441221,-500.0,0.0001477,2]
[355224677,1741025441230,-500.0,0.0001477,2]
[355224678,1741025441239,-1052.14,0.0001477,2]
[355224679,1741025441249,-500.0,0.0001477,2]
[355224680,1741025441257,-500.0,0.0001477,2]
[355224681,1741025441266,-508.07,0.0001477,2]
[355224682,1741025441276,-500.0,0.0001477,2]
[355224683,1741025441285,-500.0,0.0001477,2]
[355224684,1741025441294,-500.0,0.0001477,2]
[355224685,1741025441303,-500.0,0.0001477,2]
[355224686,1741025441312,-500.0,0.0001477,2]
[355224687,1741025441322,-500.0,0.0001477,2]
[355224688,1741025441331,-1256.84,0.0001477,2]
[355224689,1741025441340,-500.0,0.0001477,2]